fUST/lending_fUST_20240611
["ID","MTS","AMOUNT","RATE_DAILY","PERIOD"]
[329066533,1718080243335,-500.0,0.00024109,2]
[329066534,1718080243348,-500.0,0.00024109,2]
[329066535,1718080243366,-500.0,0.00024109,2]
[329066536,1718080243377,-500.0,0.00024109,2]
[329066537,1718080243388,-501.38541619,0.00024109,2]
[329066538,1718080243399,-540.39361235,0.00024109,2]
[329066539,1718080243410,-500.0,0.00024109,2]
[329066540,1718080243425,-500.0,0.00024109,2]
[329066541,1718080243435,-500.0,0.00024109,2]
[329066542,1718080243447,-519.49438458,0.00024109,2]
[329066543,1718080243457,-500.0,0.00024109,2]
[329066544,1718080243466,-501.8202914,0.00024109,2]
[329066545,1718080243476,-500.0,0.00024109,2]
[329066546,1718080243486,-500.0,0.00024109,2]
[329066547,1718080243497,-500.0,0.00024109,2]
[329066548,1718080243507,-500.0,0.00024109,2]
[329066549,1718080243518,-510.5646425,0.00024109,2]
[329066550,1718080243541,-500.0,0.00024109,2]
[329066551,1718080243553,-500.0,0.00024109,2]
[329066552,1718080243570,-513.23153849,0.00024109,2]
[329066554,1718080243585,-505.21495529,0.00024109,2]
[329066556,1718080243622,-151.0,0.00024109,2]
[329066558,1718080243641,-503.785688,0.00024109,2]
[329066560,1718080243652,-509.92997119,0.00024109,2]
[329066561,1718080243663,-500.0,0.00024109,2]
[329066563,1718080243681,-500.0,0.00024109,2]
[329066565,1718080243695,-157.47654381,0.00024109,2]
[329066566,1718080243710,-509.40204502,0.00024109,2]
[329066568,1718080243725,-519.69390465,0.00024109,2]
[329066569,1718080243738,-500.0,0.00024109,2]
[329066570,1718080243748,-500.0,0.00024109,2]
[329066571,1718080243759,-500.0,0.00024109,2]
[329066572,1718080243769,-503.32115156,0.00024109,2]
[329066573,1718080243779,-504.29842193,0.00024109,2]
[329066574,1718080243790,-500.0,0.00024109,2]
[329066575,1718080243802,-502.34736852,0.00024109,2]
[329066576,1718080243814,-505.24104899,0.00024109,2]
[329066577,1718080243824,-151.0,0.00024109,2]
[329066578,1718080243834,-507.83060781,0.00024109,2]
[329066579,1718080243845,-500.0,0.00024109,2]
[329066580,1718080243856,-502.15462772,0.00024109,2]
[329066581,1718080243866,-500.0,0.00024109,2]
[329066582,1718080243877,-501.85306364,0.00024109,2]
[329066583,1718080243889,-500.0,0.00024109,2]
[329066584,1718080243899,-500.0,0.00024109,2]
[329066585,1718080243909,-500.0,0.00024109,2]
[329066586,1718080243920,-500.0,0.00024109,2]
[329066587,1718080243930,-500.0,0.00024109,2]
[329066588,1718080243941,-273.9,0.00024109,2]
[329066589,1718080243952,-523.64325891,0.00024109,2]
[329066590,1718080243964,-514.91145344,0.00024109,2]
[329066591,1718080243975,-500.0,0.00024109,2]
[329066592,1718080243985,-500.0,0.00024109,2]
[329066593,1718080243997,-500.0,0.00024109,2]
[329066594,1718080244007,-500.0,0.00024109,2]
[329066596,1718080244018,-500.0,0.00024109,2]
[329066598,1718080244028,-502.39977936,0.00024109,2]
[329066600,1718080244038,-504.79658405,0.00024109,2]
[329066601,1718080244048,-500.0,0.00024109,2]
[329066602,1718080244061,-500.0,0.00024109,2]
[329066603,1718080244071,-500.0,0.00024109,2]
[329066604,1718080244081,-500.0,0.00024109,2]
[329066605,1718080244091,-500.0,0.00024109,2]
[329066606,1718080244101,-500.0,0.00024109,2]
[329066607,1718080244115,-500.0,0.00024109,2]
[329066608,1718080244127,-505.82639184,0.00024109,2]
[329066609,1718080244138,-500.0,0.00024109,2]
[329066610,1718080244158,-500.0,0.00024109,2]
[329066611,1718080244168,-500.0,0.00024109,2]
[329066612,1718080244179,-500.0,0.00024109,2]
[329066613,1718080244191,-500.0,0.00024109,2]
[329066614,1718080244202,-457.23110648,0.00024109,2]
[329066615,1718080244212,-500.0,0.00024109,2]
[329066617,1718080244222,-502.65383392,0.00024109,2]
[329066619,1718080244233,-500.0,0.00024109,2]
[329066621,1718080244243,-502.37314405,0.00024109,2]
[329066623,1718080244253,-500.0,0.00024109,2]
[329066624,1718080244264,-388.74845996,0.00024109,2]
[329066625,1718080244275,-501.37198398,0.00024109,2]
[329066626,1718080244285,-509.23181579,0.00024109,2]
[329066627,1718080244296,-505.54806492,0.00024109,2]
[329066628,1718080244308,-500.0,0.00024109,2]
[329066629,1718080244318,-500.0,0.00024109,2]
[329066630,1718080244327,-500.0,0.00024109,2]
[329066631,1718080244337,-500.0,0.00024109,2]
[329066632,1718080244347,-500.0,0.00024109,2]
[329066633,1718080244356,-500.0,0.00024109,2]
[329066634,1718080244368,-500.0,0.00024109,2]
[329066635,1718080244378,-500.0,0.00024109,2]
[329066636,1718080244388,-500.0,0.00024109,2]
[329066637,1718080244399,-500.0,0.00024109,2]
[329066638,1718080244409,-500.0,0.00024109,2]
[329066639,1718080244419,-519.35254762,0.00024109,2]
[329066640,1718080244429,-500.0,0.00024109,2]
[329066641,1718080244439,-500.0,0.00024109,2]
[329066642,1718080244449,-500.0,0.00024109,2]
[329066643,1718080244459,-500.0,0.00024109,2]
[329066644,1718080244468,-151.0,0.00024109,2]
[329066645,1718080244478,-151.0,0.00024109,2]
[329066646,1718080244488,-500.0,0.00024109,2]
[329066647,1718080244497,-511.50882941,0.00024109,2]
[329066648,1718080244507,-500.0,0.00024109,2]
[329066649,1718080244517,-500.0,0.00024109,2]
[329066650,1718080244526,-546.25433251,0.00024109,2]
[329066652,1718080244536,-506.10660244,0.00024109,2]
[329066653,1718080244546,-560.31808608,0.00024109,2]
[329066655,1718080244558,-500.0,0.00024109,2]
[329066656,1718080244568,-151.0,0.00024109,2]
[329066657,1718080244578,-151.0,0.00024109,2]
[329066658,1718080244587,-522.93115187,0.00024109,2]
[329066659,1718080244597,-639.5121875,0.00024109,2]
[329066660,1718080244608,-500.0,0.00024109,2]
[329066661,1718080244618,-537.9835171,0.00024109,2]
[329066662,1718080244628,-505.18602567,0.00024109,2]
[329066663,1718080244638,-175.44503207,0.00024109,2]
[329066664,1718080244648,-509.01416878,0.00024109,2]
[329066665,1718080244659,-500.00677489,0.00024109,2]
[329066666,1718080244669,-614.2719877,0.00024109,2]
[329066667,1718080244679,-500.0,0.00024109,2]
[329066668,1718080244689,-500.0,0.00024109,2]
[329066669,1718080244704,-500.0,0.00024109,2]
[329066670,1718080244714,-500.0,0.00024109,2]
[329066671,1718080244723,-509.028052,0.00024109,2]
[329066672,1718080244733,-500.0,0.00024109,2]
[329066673,1718080244743,-500.0,0.00024109,2]
[329066674,1718080244753,-500.0,0.00024109,2]
[329066675,1718080244763,-505.29367401,0.00024109,2]
[329066676,1718080244773,-500.0,0.00024109,2]
[329066677,1718080244784,-243.18217057,0.00024109,2]
[329066678,1718080244794,-282.54254845,0.00024109,2]
[329066679,1718080244807,-500.0,0.00024109,2]
[329066680,1718080244816,-503.82780805,0.00024109,2]
[329066681,1718080244826,-500.0,0.00024109,2]
[329066682,1718080244836,-507.55625995,0.00024109,2]
[329066683,1718080244845,-500.0,0.00024109,2]
[329066684,1718080244855,-500.0,0.00024109,2]
[329066685,1718080244865,-500.0,0.00024109,2]
[329066686,1718080244875,-500.0,0.00024109,2]
[329066687,1718080244886,-506.8752513,0.00024109,2]
[329066688,1718080244896,-500.0,0.00024109,2]
[329066689,1718080244907,-500.0,0.00024109,2]
[329066690,1718080244917,-500.0,0.00024109,2]
[329066691,1718080244927,-500.0,0.00024109,2]
[329066692,1718080244938,-500.0,0.00024109,2]
[329066693,1718080244947,-500.0,0.00024109,2]
[329066694,1718080244958,-500.0,0.00024109,2]
[329066695,1718080244968,-500.0,0.00024109,2]
[329066696,1718080244978,-497.34216697,0.00024109,2]
[329066697,1718080244988,-503.58748815,0.00024109,2]
[329066698,1718080244999,-500.0,0.00024109,2]
[329066699,1718080245009,-500.0,0.00024109,2]
[329066700,1718080245020,-500.0,0.00024109,2]
[329066701,1718080245031,-502.71974628,0.00024109,2]
[329066702,1718080245042,-500.0,0.00024109,2]
[329066703,1718080245052,-500.0,0.00024109,2]
[329066704,1718080245065,-151.0,0.00024109,2]
[329066705,1718080245074,-500.0,0.00024109,2]
[329066706,1718080245084,-151.0,0.00024109,2]
[329066707,1718080245093,-500.0,0.00024109,2]
[329066708,1718080245104,-500.0,0.00024109,2]
[329066709,1718080245117,-500.0,0.00024109,2]
[329066710,1718080245127,-500.0,0.00024109,2]
[329066711,1718080245138,-268.2256861,0.00024109,2]
[329066712,1718080245155,-500.0,0.00024109,2]
[329066713,1718080245165,-500.0,0.00024109,2]
[329066714,1718080245175,-502.13028345,0.00024109,2]
[329066715,1718080245186,-503.29381313,0.00024109,2]
[329066716,1718080245199,-151.0,0.00024109,2]
[329066717,1718080245209,-151.0,0.00024109,2]
[329066718,1718080245219,-500.0,0.00024109,2]
[329066719,1718080245229,-500.0,0.00024109,2]
[329066720,1718080245240,-500.0,0.00024109,2]
[329066721,1718080245250,-500.15094669,0.00024109,2]
[329066722,1718080245260,-517.9645685,0.00024109,2]
[329066723,1718080245269,-500.0,0.00024109,2]
[329066724,1718080245279,-532.32471087,0.00024109,2]
[329066725,1718080245289,-500.0,0.00024109,2]
[329066726,1718080245299,-504.23118899,0.00024109,2]
[329066727,1718080245312,-500.0,0.00024109,2]
[329066728,1718080245322,-500.0,0.00024109,2]
[329066729,1718080245331,-500.0,0.00024109,2]
[329066730,1718080245341,-500.0,0.00024109,2]
[329066731,1718080245351,-504.95685484,0.00024109,2]
[329066732,1718080245361,-495.15691351,0.00024109,2]
[329066733,1718080245371,-500.0,0.00024109,2]
[329066734,1718080245381,-500.0,0.00024109,2]
[329066735,1718080245391,-503.20839671,0.00024109,2]
[329066736,1718080245401,-500.0,0.00024109,2]
[329066737,1718080245411,-500.0,0.00024109,2]
[329066738,1718080245422,-500.0,0.00024109,2]
[329066739,1718080245432,-500.0,0.00024109,2]
[329066740,1718080245442,-500.0,0.00024109,2]
[329066741,1718080245453,-500.0,0.00024109,2]
[329066742,1718080245463,-500.0,0.00024109,2]
[329066743,1718080245473,-500.0,0.00024109,2]
[329066744,1718080245483,-500.0,0.00024109,2]
[329066745,1718080245494,-500.0,0.00024109,2]
[329066746,1718080245504,-502.57518118,0.00024109,2]
[329066747,1718080245514,-500.0,0.00024109,2]
[329066748,1718080245525,-300.29102287,0.00024109,2]
[329066749,1718080245544,-199.70897713,0.00024109,2]
[329066750,1718080245556,-1003.1202979,0.00024109,2]
[329066751,1718080245566,-497.26392835,0.00024109,2]
[329066752,1718080245578,-2.73607165,0.00024109,2]
[329066753,1718080245589,-500.0,0.00024109,2]
[329066754,1718080245598,-151.0,0.00024109,2]
[329066755,1718080245608,-151.0,0.00024109,2]
[329066756,1718080245618,-531.43246998,0.00024109,2]
[329066757,1718080245627,-501.95617201,0.00024109,2]
[329066758,1718080245637,-500.0,0.00024109,2]
[329066759,1718080245647,-500.0,0.00024109,2]
[329066760,1718080245657,-500.0,0.00024109,2]
[329066761,1718080245667,-500.0,0.00024109,2]
[329066762,1718080245677,-500.0,0.00024109,2]
[329066763,1718080245688,-500.0,0.00024109,2]
[329066764,1718080245700,-500.0,0.00024109,2]
[329066765,1718080245710,-505.9738877,0.00024109,2]
[329066766,1718080245721,-500.0,0.00024109,2]
[329066767,1718080245731,-500.0,0.00024109,2]
[329066768,1718080245742,-500.0,0.00024109,2]
[329066769,1718080245752,-500.0,0.00024109,2]
[329066774,1718080245860,-500.0,0.00024109,2]
[329066776,1718080245870,-500.0,0.00024109,2]
[329066778,1718080245881,-500.0,0.00024109,2]
[329066780,1718080245891,-502.50707522,0.00024109,2]
[329066782,1718080245901,-500.0,0.00024109,2]
[329066784,1718080245911,-1121.14,0.00024109,2]
[329066786,1718080245921,-500.0,0.00024109,2]
[329066788,1718080245931,-503.94912556,0.00024109,2]
[329066790,1718080245942,-502.02436667,0.00024109,2]
[329066792,1718080245953,-505.32918729,0.00024109,2]
[329066794,1718080245963,-502.41203932,0.00024109,2]
[329066796,1718080245974,-502.81875941,0.00024109,2]
[329066798,1718080245985,-292.0110626,0.00024109,2]
[329066857,1718080247412,-207.9889374,0.00024109,2]
[329066858,1718080247424,-500.90002089,0.00024109,2]
[329066860,1718080247435,-595.5,0.00024109,2]
[329066861,1718080247445,-526.73270974,0.00024109,2]
[329066862,1718080247455,-500.0,0.00024109,2]
[329066863,1718080247465,-177.681908,0.00024109,2]
[329066864,1718080247475,-505.48768244,0.00024109,2]
[329066865,1718080247486,-500.0,0.00024109,2]
[329066866,1718080247496,-500.0,0.00024109,2]
[329066867,1718080247506,-503.47289318,0.00024109,2]
[329066868,1718080247517,-500.0,0.00024109,2]
[329066869,1718080247527,-500.0,0.00024109,2]
[329066870,1718080247537,-501.12855007,0.00024109,2]
[329066871,1718080247548,-500.0,0.00024109,2]
[329066872,1718080247560,-460.18729828,0.00024109,2]
[329066873,1718080247572,-722.87270172,0.00024109,2]
[329066874,1718080247582,-500.0,0.00024109,2]
[329066875,1718080247592,-133.12729828,0.00024109,2]
[329066876,1718080247606,-636.5613204,0.00024109,2]
[329066877,1718080249095,-165.0137631,0.00024108,2]
[329066878,1718080249106,-771.46138132,0.00024109,2]
[329066879,1718080249122,-500.0,0.00024109,2]
[329066880,1718080249132,-500.0,0.00024109,2]
[329066881,1718080249143,-500.94822671,0.00024109,2]
[329066882,1718080249158,-500.0,0.00024109,2]
[329066883,1718080249169,-500.0,0.00024109,2]
[329066884,1718080249180,-112.5766287,0.00024109,2]
[329066885,1718080249327,-256.5595666,0.00024109,2]
[329066902,1718080684695,155.02015262,9.999e-05,2]
[329066903,1718080686292,1343.38519329,9.999e-05,2]
[329066992,1718081433584,-1188.63138183,0.00019173,2]
[329067009,1718081440208,-166.78136105,0.00019173,2]
[329067010,1718081440219,-463.902014,0.00019174,2]
[329067011,1718081440230,-222.14620021,0.00019174,2]
[329067012,1718081440242,-4151.61665985,0.00019176,2]
[329067013,1718081440256,-267.45300945,0.00019176,2]
[329067014,1718081440269,-8695.03066,0.00019176,2]
[329067045,1718081442553,-349.05226,0.00019176,2]
[329067048,1718081442565,-4080.61636184,0.00019176,2]
[329067050,1718081442582,-453.0,0.00019176,2]
[329067052,1718081442594,-2709.89570981,0.00019176,2]
[329067054,1718081442606,-153.0,0.00020799,2]
[329067056,1718081442617,-166.666666,0.00021918,2]
[329067058,1718081442627,-166.666666,0.00022431,2]
[329067060,1718081442638,-1182.98211119,0.00022452,2]
[329067062,1718081442648,-301.71959303,0.00022844,2]
[329067064,1718081442659,-2113.46925397,0.00022899,2]
[329067077,1718081442784,-1345.14829684,0.00022899,2]
[329067272,1718081444962,-7641.52129506,0.00022899,2]
[329067274,1718081444972,-166.666666,0.00022944,2]
[329067277,1718081444982,-243.95994714,0.00023,2]
[329067279,1718081444992,-207.22317817,0.00023,2]
[329067281,1718081445002,-256.26178133,0.00023,2]
[329067716,1718081449778,-301.4501596,0.00023,2]
[329067719,1718081449791,-1926.65507899,0.00023,2]
[329067721,1718081449801,-166.666666,0.00023456,2]
[329067723,1718081449811,-648.14910556,0.00023574,2]
[329067725,1718081449820,-137550.57554398,0.00023614,2]
[329067727,1718081449833,-195288.38457663,0.00023614,2]
[329074807,1718082336978,273.37336231,9.9e-05,2]
[329074808,1718082345620,273.37336231,9.9e-05,2]
[329074809,1718082361471,273.37336231,9.9e-05,2]
[329074810,1718082369802,273.37336231,9.9e-05,2]
[329074811,1718082379574,273.37336231,9.9e-05,2]
[329074812,1718082387620,273.37336231,9.9e-05,2]
[329074813,1718082396454,273.37336231,9.9e-05,2]
[329074814,1718082405624,273.37336231,9.9e-05,2]
[329074815,1718082414449,273.37336231,9.9e-05,2]
[329074816,1718082422986,273.37336231,9.9e-05,2]
[329074818,1718082431075,273.37336231,9.9e-05,2]
[329074823,1718082441044,273.37336231,9.9e-05,2]
[329074824,1718082449239,273.37336231,9.9e-05,2]
[329074825,1718082457942,273.37336231,9.9e-05,2]
[329074826,1718082467477,273.37336231,9.9e-05,2]
[329074827,1718082476537,273.37336231,9.9e-05,2]
[329074828,1718082485422,273.37336231,9.9e-05,2]
[329074830,1718082493362,273.37336231,9.9e-05,2]
[329074831,1718082501552,273.37336231,9.9e-05,2]
[329074832,1718082510013,273.37336231,9.9e-05,2]
[329074833,1718082518352,273.37336231,9.9e-05,2]
[329074834,1718082526924,273.37336231,9.9e-05,2]
[329074835,1718082535816,273.37336231,9.9e-05,2]
[329074836,1718082543847,273.37336231,9.9e-05,2]
[329074842,1718082552077,273.37336231,9.9e-05,2]
[329074859,1718082563248,273.37336231,9.9e-05,2]
[329074860,1718082571484,273.37336231,9.9e-05,2]
[329074861,1718082579412,273.37336231,9.9e-05,2]
[329074862,1718082588807,273.37336231,9.9e-05,2]
[329074863,1718082596740,273.37336231,9.9e-05,2]
[329074864,1718082605230,273.37336231,9.9e-05,2]
[329074866,1718082613910,273.37336231,9.9e-05,2]
[329074868,1718082622011,273.37336231,9.9e-05,2]
[329074969,1718082640272,-153.0,0.00020801,2]
[329074971,1718082640285,-166.666666,0.00022099,2]
[329074973,1718082640297,-160.053646,0.00022474,2]
[329074975,1718082640312,-166.666666,0.00022701,2]
[329074977,1718082640325,-166.666666,0.00023304,2]
[329074979,1718082640337,-1528.68058954,0.00023537,2]
[329074981,1718082640354,-1894.97378875,0.00023537,2]
[329075285,1718082644317,-816.0507812,0.00023537,2]
[329075287,1718082644331,-2227.89522879,0.00023609,2]
[329075421,1718082645918,-9717.40467984,0.00023609,2]
[329075424,1718082645939,-338.79229206,0.00023609,2]
[329075736,1718082649597,-18221.87669117,0.00023609,2]
[329077724,1718082676851,252.46175033,9.999e-05,2]
[329079803,1718082787437,141.60558132,9.999e-05,2]
[329079804,1718082787475,374.18108772,9.999e-05,2]
[329079805,1718082828478,1282.24587467,9.999e-05,2]
[329079806,1718083014918,-172.1,0.00020766,5]
[329079807,1718083072292,282.53510229,9.999e-05,2]
[329079808,1718083088457,-293.19110734,0.00017812,2]
[329079809,1718083112345,242.45261852,9.999e-05,2]
[329079834,1718083833552,-307.65668588,0.00020035,2]
[329079835,1718083833562,-157.8,0.00020136,3]
[329079837,1718083833582,-157.8,0.00020766,5]
[329079839,1718083833592,-163.91769632,0.00021297,2]
[329079840,1718083833604,-157.8,0.00021397,5]
[329079842,1718083833615,-151.0,0.00021397,5]
[329079843,1718083833625,-160.361286,0.00021643,2]
[329079844,1718083833639,-1988.9231567,0.00021669,2]
[329079845,1718083833650,-3990.4542233,0.00021718,2]
[329079846,1718083833660,-166.666666,0.00021918,2]
[329079847,1718083833670,-157.8,0.00022027,5]
[329079848,1718083833681,-151.0,0.00022027,5]
[329079849,1718083833691,-166.666666,0.00022431,2]
[329079850,1718083833709,-157.8,0.00022658,5]
[329079851,1718083833718,-151.0,0.00022658,5]
[329079852,1718083833728,-166.666666,0.00022944,2]
[329079853,1718083833738,-157.8,0.00023288,5]
[329079854,1718083833750,-151.0,0.00023288,5]
[329079855,1718083833760,-4239.70515949,0.00023414,2]
[329079856,1718083833771,-166.666666,0.00023456,2]
[329079857,1718083833790,-160.5333,0.00023609,2]
[329079858,1718083833800,-18041.53271996,0.00023609,2]
[329079859,1718083833812,-1499.64760343,0.00023609,2]
[329080157,1718083843110,-1220.05669272,0.00023609,2]
[329080161,1718083843123,-1271.22205765,0.00023609,2]
[329080380,1718083845488,-17977.41401979,0.00023609,2]
[329080414,1718083845938,-6784.6,0.00023609,2]
[329080562,1718083847703,-549.10797567,0.00023609,2]
[329080834,1718083850676,-250520.85801484,0.00023609,2]
[329080836,1718083850687,-41505.14198516,0.0002361,2]
[329082109,1718083930083,153.40422105,9.999e-05,2]
[329082110,1718083930117,1.62678515,9.999e-05,2]
[329082111,1718083944225,2682.75928745,9.999e-05,2]
[329082112,1718083967287,776.51840216,0.00015,2]
[329082116,1718084181076,242.45261852,9.999e-05,2]
[329082117,1718084301038,20000.0,0.000265,120]
[329082118,1718084358611,273.37336231,9.9e-05,2]
[329082119,1718084358905,12661.28366813,9.999e-05,2]
[329082120,1718084367831,273.37336231,9.9e-05,2]
[329082121,1718084376864,273.37336231,9.9e-05,2]
[329082122,1718084384812,273.37336231,9.9e-05,2]
[329082123,1718084392844,524.49723493,9.999e-05,2]
[329082124,1718084393185,273.37336231,9.9e-05,2]
[329082125,1718084401147,273.37336231,9.9e-05,2]
[329082126,1718084409498,273.37336231,9.9e-05,2]
[329082127,1718084417399,273.37336231,9.9e-05,2]
[329082128,1718084425664,273.37336231,9.9e-05,2]
[329082129,1718084426148,372.78673862,9.999e-05,2]
[329082130,1718084428273,411.64915333,9.999e-05,2]
[329082131,1718084433630,273.37336231,9.9e-05,2]
[329082132,1718084443078,273.37336231,9.9e-05,2]
[329082133,1718084444959,187.41110824,9.999e-05,2]
[329082134,1718084451015,273.37336231,9.9e-05,2]
[329082135,1718084459237,273.37336231,9.9e-05,2]
[329082136,1718084468372,273.37336231,9.9e-05,2]
[329082137,1718084476660,273.37336231,9.9e-05,2]
[329082138,1718084484797,273.37336231,9.9e-05,2]
[329082139,1718084493569,273.37336231,9.9e-05,2]
[329082140,1718084502703,273.37336231,9.9e-05,2]
[329082141,1718084511610,273.37336231,9.9e-05,2]
[329082142,1718084519558,273.37336231,9.9e-05,2]
[329082143,1718084528890,273.37336231,9.9e-05,2]
[329082144,1718084536828,273.37336231,9.9e-05,2]
[329082145,1718084545727,273.37336231,9.9e-05,2]
[329082146,1718084554343,273.37336231,9.9e-05,2]
[329082147,1718084562643,273.37336231,9.9e-05,2]
[329082148,1718084570443,273.37336231,9.9e-05,2]
[329082149,1718084578691,273.37336231,9.9e-05,2]
[329082150,1718084586714,273.37336231,9.9e-05,2]
[329082151,1718084595616,273.37336231,9.9e-05,2]
[329082152,1718084603582,273.37336231,9.9e-05,2]
[329082153,1718084612953,273.37336231,9.9e-05,2]
[329082154,1718084620953,273.37336231,9.9e-05,2]
[329082155,1718084629789,273.37336231,9.9e-05,2]
[329082156,1718084638374,273.37336231,9.9e-05,2]
[329082157,1718084646607,273.37336231,9.9e-05,2]
[329082158,1718084655209,273.37336231,9.9e-05,2]
[329082159,1718084664283,273.37336231,9.9e-05,2]
[329082160,1718084665150,660.11978951,9.999e-05,2]
[329082161,1718084672230,273.37336231,9.9e-05,2]
[329082162,1718084680507,273.37336231,9.9e-05,2]
[329082163,1718084689061,273.37336231,9.9e-05,2]
[329082164,1718084697316,273.37336231,9.9e-05,2]
[329082165,1718084705097,273.37336231,9.9e-05,2]
[329082166,1718084713320,273.37336231,9.9e-05,2]
[329082167,1718084721837,273.37336231,9.9e-05,2]
[329082168,1718084730871,273.37336231,9.9e-05,2]
[329082169,1718084738974,273.37336231,9.9e-05,2]
[329082170,1718084747765,273.37336231,9.9e-05,2]
[329082171,1718084756406,273.37336231,9.9e-05,2]
[329082172,1718084764434,273.37336231,9.9e-05,2]
[329082173,1718084772657,273.37336231,9.9e-05,2]
[329082174,1718084782782,273.37336231,9.9e-05,2]
[329082175,1718084791027,273.37336231,9.9e-05,2]
[329082176,1718084797175,211.57187684,9.999e-05,2]
[329082177,1718084797204,1230.77476619,9.999e-05,2]
[329082178,1718084799443,273.37336231,9.9e-05,2]
[329082179,1718084807614,273.37336231,9.9e-05,2]
[329082213,1718084816515,273.37336231,9.9e-05,2]
[329082214,1718084824435,273.37336231,9.9e-05,2]
[329082217,1718084833262,273.37336231,9.9e-05,2]
[329082218,1718084841872,273.37336231,9.9e-05,2]
[329082219,1718084850135,273.37336231,9.9e-05,2]
[329082220,1718084858141,273.37336231,9.9e-05,2]
[329082221,1718084867496,273.37336231,9.9e-05,2]
[329082222,1718084876085,273.37336231,9.9e-05,2]
[329082223,1718084884029,273.37336231,9.9e-05,2]
[329082224,1718084892858,273.37336231,9.9e-05,2]
[329082225,1718084901098,273.37336231,9.9e-05,2]
[329082226,1718084909301,273.37336231,9.9e-05,2]
[329082227,1718084917215,273.37336231,9.9e-05,2]
[329082228,1718084925551,273.37336231,9.9e-05,2]
[329082229,1718084933577,273.37336231,9.9e-05,2]
[329082230,1718084941810,273.37336231,9.9e-05,2]
[329082231,1718084949797,273.37336231,9.9e-05,2]
[329082238,1718084958616,273.37336231,9.9e-05,2]
[329082240,1718084966674,273.37336231,9.9e-05,2]
[329082242,1718084975388,273.37336231,9.9e-05,2]
[329082243,1718084983259,273.37336231,9.9e-05,2]
[329082244,1718084991515,273.37336231,9.9e-05,2]
[329082245,1718085000071,273.37336231,9.9e-05,2]
[329082246,1718085008862,273.37336231,9.9e-05,2]
[329082247,1718085017445,273.37336231,9.9e-05,2]
[329082248,1718085026306,273.37336231,9.9e-05,2]
[329082300,1718085034120,-187.41110824,0.00020644,2]
[329082302,1718085034132,-153.0,0.00020645,2]
[329082304,1718085034143,-153.0,0.00020645,2]
[329082306,1718085034155,-153.0,0.00020645,2]
[329082308,1718085034169,-153.0,0.00020748,2]
[329082310,1718085034180,-153.0,0.00020748,2]
[329082312,1718085034191,-153.0,0.00020748,2]
[329082314,1718085034206,-153.0,0.00020748,2]
[329082316,1718085034224,-153.0,0.00020748,2]
[329082318,1718085034236,-153.0,0.00020748,2]
[329082320,1718085034247,-153.0,0.00020748,2]
[329082322,1718085034257,-153.0,0.00020748,2]
[329082324,1718085034267,-155.2321767,0.00021666,2]
[329082326,1718085034278,-155.36333206,0.00021667,2]
[329082328,1718085034289,-155.06442409,0.00021667,2]
[329082330,1718085034301,-1443.30574882,0.00021668,2]
[329082332,1718085034311,-3000.0,0.0002167,2]
[329082334,1718085034321,-160.3612866,0.00021791,2]
[329082336,1718085034332,-166.666666,0.00021918,2]
[329082338,1718085034343,-403.11992884,0.00021918,7]
[329082340,1718085034354,-155.61494317,0.00021924,2]
[329082342,1718085034365,-662.94343288,0.00021925,2]
[329082344,1718085034376,-1400.7599869,0.00021927,2]
[329082346,1718085034387,-166.666666,0.00022431,2]
[329082348,1718085034398,-785.95268956,0.00022821,2]
[329082350,1718085034408,-262.64158977,0.00022823,2]
[329082352,1718085034421,-155.4968445,0.00022825,2]
[329082364,1718085034544,-166.666666,0.00022944,2]
[329082367,1718085034557,-500.0,0.00023109,7]
[329082369,1718085034568,-605.08,0.00023109,7]